fUSD/lending_fUSD_20250320
["ID","MTS","AMOUNT","RATE_DAILY","PERIOD"]
[356433026,1742440246557,-500.0,0.00027779,2]
[356433027,1742440246567,-500.0,0.00027779,2]
[356433028,1742440246577,-500.0,0.00027779,2]
[356433029,1742440246587,-500.0,0.00027779,2]
[356433030,1742440246596,-500.0,0.00027779,2]
[356433031,1742440246606,-500.0,0.00027779,2]
[356433032,1742440246615,-500.0,0.00027779,2]
[356433033,1742440246626,-500.0,0.00027779,2]
[356433034,1742440246636,-500.0,0.00027779,2]
[356433035,1742440246645,-520.29,0.00027779,2]
[356433036,1742440246656,-611.4656553,0.00027779,2]
[356433037,1742440246666,-500.0,0.00027779,2]
[356433038,1742440246676,-500.0,0.00027779,2]
[356433039,1742440246686,-500.0,0.00027779,2]
[356433040,1742440246697,-500.0,0.00027779,2]
[356433041,1742440246707,-471.51119085,0.00027779,2]
[356433042,1742440246725,-28.48880915,0.00027779,2]
[356433043,1742440246736,-500.0,0.00027779,2]
[356433044,1742440246745,-160.83487272,0.00027779,2]
[356433045,1742440246757,-339.16512728,0.00027779,2]
[356433046,1742440246767,-500.0,0.00027779,2]
[356433047,1742440246777,-500.0,0.00027779,2]
[356433048,1742440246787,-500.0,0.00027779,2]
[356433049,1742440246796,-430.5930846,0.00027779,2]
[356433050,1742440246806,-500.0,0.00027779,2]
[356433051,1742440246818,-500.0,0.00027779,2]
[356433052,1742440246827,-500.0,0.00027779,2]
[356433053,1742440246839,-500.0,0.00027779,2]
[356433054,1742440246848,-500.0,0.00027779,2]
[356433055,1742440246858,-430.97130765,0.00027779,2]
[356433056,1742440246867,-500.0,0.00027779,2]
[356433057,1742440246877,-500.0,0.00027779,2]
[356433058,1742440246887,-500.0,0.00027779,2]
[356433059,1742440246896,-500.0,0.00027779,2]
[356433060,1742440246906,-500.0,0.00027779,2]
[356433061,1742440246916,-500.0,0.00027779,2]
[356433062,1742440246926,-176.45049532,0.00027779,2]
[356433063,1742440246935,-108.66619215,0.00027779,2]
[356433064,1742440247048,-391.33380785,0.00027779,2]
[356433065,1742440247058,-46.72009238,0.00027779,2]
[356433066,1742440247071,-453.27990762,0.00027779,2]
[356433067,1742440247080,-500.0,0.00027779,2]
[356433068,1742440247090,-500.0,0.00027779,2]
[356433069,1742440247100,-500.0,0.00027779,2]
[356433070,1742440247110,-186.11930679,0.00027779,2]
[356433071,1742440247120,-500.0,0.00027779,2]
[356433072,1742440247129,-500.0,0.00027779,2]
[356433073,1742440247140,-500.0,0.00027779,2]
[356433074,1742440247149,-500.0,0.00027779,2]
[356433075,1742440247159,-500.0,0.00027779,2]
[356433076,1742440247169,-361.64692899,0.00027779,2]
[356433077,1742440247183,-138.35307101,0.00027779,2]
[356433078,1742440247192,-249.99435047,0.00027779,2]
[356433079,1742440247204,-250.00564953,0.00027779,2]
[356433080,1742440247214,-433.17313124,0.00027779,2]
[356433081,1742440247224,-522.96,0.00027779,2]
[356433082,1742440247234,-500.0,0.00027779,2]
[356433083,1742440247243,-520.33,0.00027779,2]
[356433084,1742440247253,-500.0,0.00027779,2]
[356433085,1742440247263,-500.0,0.00027779,2]
[356433086,1742440247273,-500.0,0.00027779,2]
[356433087,1742440247283,-500.0,0.00027779,2]
[356433088,1742440247293,-500.0,0.00027779,2]
[356433089,1742440247303,-500.0,0.00027779,2]
[356433090,1742440247312,-500.0,0.00027779,2]
[356433091,1742440247323,-500.0,0.00027779,2]
[356433092,1742440247332,-500.0,0.00027779,2]
[356433093,1742440247341,-80.94971185,0.00027779,2]
[356433094,1742440247358,-419.05028815,0.00027779,2]
[356433095,1742440247367,-185.60971186,0.00027779,2]
[356433096,1742440247378,-314.39028814,0.00027779,2]
[356433097,1742440247387,-500.0,0.00027779,2]
[356433098,1742440247396,-500.0,0.00027779,2]
[356433099,1742440247406,-500.0,0.00027779,2]
[356433100,1742440247416,-500.0,0.00027779,2]
[356433101,1742440247426,-500.0,0.00027779,2]
[356433102,1742440247439,-500.0,0.00027779,2]
[356433103,1742440247452,-500.0,0.00027779,2]
[356433104,1742440247461,-500.0,0.00027779,2]
[356433105,1742440247470,-500.0,0.00027779,2]
[356433106,1742440247479,-550.67,0.00027779,2]
[356433107,1742440247491,-500.0,0.00027779,2]
[356433108,1742440247500,-500.0,0.00027779,2]
[356433109,1742440247510,-500.0,0.00027779,2]
[356433110,1742440247521,-396.78602595,0.00027779,2]
[356433111,1742440247531,-500.0,0.00027779,2]
[356433112,1742440247541,-178.21099291,0.00027779,2]
[356433113,1742440247553,-321.78900709,0.00027779,2]
[356433114,1742440247562,-333.49395197,0.00027779,2]
[356433115,1742440248436,-166.50604803,0.00027779,2]
[356433116,1742440248447,-625.52580212,0.00027779,2]
[356433117,1742440248461,-78.52776367,0.00027779,2]
[356433118,1742440248475,-306.47045449,0.00027779,2]
[356433119,1742440248486,-500.0,0.00027779,2]
[356433120,1742440248498,-500.0,0.00027779,2]
[356433121,1742440248509,-500.0,0.00027779,2]
[356433122,1742440248519,-500.0,0.00027779,2]
[356433123,1742440248533,-500.0,0.0002778,2]
[356433124,1742440248544,-500.0,0.0002778,2]
[356433125,1742440248557,-151.0,0.0002778,7]
[356433126,1742440248569,-151.0,0.0002778,7]
[356433127,1742440248579,-151.0,0.0002778,7]
[356433128,1742440248589,-500.0,0.0002778,2]
[356433129,1742440248629,-500.0,0.0002778,2]
[356433130,1742440248640,-500.0,0.0002778,2]
[356433131,1742440248650,-500.0,0.0002778,2]
[356433132,1742440248660,-500.0,0.0002778,2]
[356433133,1742440248670,-213.59233645,0.0002778,2]
[356433134,1742440248679,-500.0,0.0002778,2]
[356433135,1742440248689,-552.85,0.0002778,2]
[356433136,1742440248698,-595.85,0.0002778,2]
[356433137,1742440248708,-500.0,0.0002778,2]
[356433138,1742440248717,-500.0,0.0002778,2]
[356433139,1742440248727,-500.0,0.0002778,2]
[356433140,1742440248738,-500.0,0.0002778,2]
[356433141,1742440248749,-500.0,0.0002778,2]
[356433142,1742440248759,-500.0,0.0002778,2]
[356433143,1742440248769,-500.0,0.0002778,2]
[356433144,1742440248783,-300.0,0.0002778,2]
[356433145,1742440248793,-500.0,0.0002778,2]
[356433146,1742440248803,-500.0,0.0002778,2]
[356433147,1742440248814,-500.0,0.0002778,2]
[356433148,1742440248824,-500.0,0.0002778,30]
[356433149,1742440248835,-500.0,0.0002778,2]
[356433150,1742440248845,-600.95,0.0002778,2]
[356433151,1742440248855,-500.0,0.0002778,2]
[356433152,1742440248865,-500.0,0.0002778,2]
[356433153,1742440248875,-500.0,0.0002778,2]
[356433154,1742440248884,-500.0,0.0002778,2]
[356433155,1742440248894,-500.0,0.0002778,2]
[356433156,1742440248903,-500.0,0.0002778,2]
[356433157,1742440248913,-500.0,0.0002778,2]
[356433158,1742440248923,-232.54009505,0.000278,2]
[356433159,1742440248933,-301.01,0.00027808,2]
[356433160,1742440248942,-413.43,0.00027808,2]
[356433161,1742440248952,-303.69,0.00027808,2]
[356433162,1742440248962,-833.26,0.00027808,2]
[356433163,1742440248971,-895.04,0.00027808,2]
[356433164,1742440248982,-157.08,0.00027808,2]
[356433165,1742440248991,-153.27,0.00027808,2]
[356433166,1742440249001,-169.61,0.00027809,2]
[356433167,1742440249010,-500.0,0.00027823,2]
[356433168,1742440249019,-151.473587,0.00027824,7]
[356433169,1742440249032,-500.0,0.00027824,2]
[356433170,1742440249044,-500.0,0.00027824,2]
[356433171,1742440249054,-500.0,0.00027824,2]
[356433172,1742440249064,-500.0,0.00027824,2]
[356433173,1742440249074,-500.0,0.00027824,2]
[356433174,1742440249084,-500.0,0.00027824,2]
[356433175,1742440249094,-530.33,0.00027824,2]
[356433176,1742440249104,-500.0,0.00027824,2]
[356433177,1742440249114,-500.0,0.00027824,2]
[356433178,1742440249124,-372.39209676,0.00027824,2]
[356433179,1742440249134,-503.83,0.00027824,2]
[356433180,1742440249143,-500.0,0.00027824,2]
[356433181,1742440249153,-500.0,0.00027824,2]
[356433182,1742440249163,-500.0,0.00027824,2]
[356433183,1742440249173,-500.0,0.00027824,2]
[356433184,1742440249183,-500.0,0.00027824,2]
[356433185,1742440249192,-500.0,0.00027824,2]
[356433186,1742440249202,-183.14574691,0.00027824,2]
[356433187,1742440249270,-192.57755316,0.00027824,2]
[356433188,1742440249283,-551.61,0.00027824,2]
[356433189,1742440249294,-832.62244684,0.00027824,2]
[356433190,1742440249306,-167.34755316,0.00027824,2]
[356433191,1742440249316,-85.36707382,0.00027824,2]
[356433192,1742440249332,-414.63292618,0.00027824,2]
[356433193,1742440249343,-500.0,0.00027824,2]
[356433194,1742440249352,-322.56707382,0.00027824,2]
[356433195,1742440249364,-177.43292618,0.00027824,2]
[356433196,1742440249375,-479.17007383,0.00027824,2]
[356433197,1742440249387,-20.82992617,0.00027824,2]
[356433198,1742440249397,-543.93,0.00027824,2]
[356433199,1742440249406,-500.0,0.00027824,2]
[356433200,1742440249416,-500.0,0.00027824,2]
[356433201,1742440249425,-500.0,0.00027824,2]
[356433202,1742440249435,-500.0,0.00027824,2]
[356433203,1742440249446,-500.0,0.00027824,2]
[356433204,1742440249459,-500.33451265,0.00027824,2]
[356433205,1742440249468,-500.0,0.00027824,2]
[356433206,1742440249479,-172.55391389,0.00027824,2]
[356433207,1742440249488,-500.0,0.00027824,2]
[356433208,1742440249498,-500.0,0.00027824,2]
[356433209,1742440249508,-360.18136712,0.00027824,2]
[356433210,1742440249539,150.0,0.00027605,2]
[356433211,1742440975941,-150.0,0.00020969,2]
[356433214,1742441315960,-160.3,0.0002104,15]
[356433215,1742441315983,-42.15,0.00025,7]
[356433244,1742441432344,-350.0,0.00023157,2]
[356433245,1742441432354,-160.77,0.00024617,2]
[356433246,1742441432363,-209.67,0.00026496,120]
[356433247,1742441432373,-156.25,0.00026594,2]
[356433248,1742441432383,-160.46565614,0.00026604,2]
[356433249,1742441432393,-1000.0,0.00026693,2]
[356433250,1742441432402,-371.22,0.00026704,2]
[356433251,1742441432412,-144.79425003,0.00026719,30]
[356433252,1742441432445,-27.09574997,0.00026719,30]
[356433253,1742441432455,-150.0,0.00026802,7]
[356433254,1742441432465,-168.53,0.00026849,2]
[356433255,1742441432474,-160.77,0.00026881,2]
[356433256,1742441432483,-744.60425003,0.00027,2]
[356433257,1742441432494,-255.39574997,0.00027,2]
[356433258,1742441432504,-131.60425003,0.00027149,4]
[356433259,1742441432539,-61.23384637,0.00027149,4]
[356433260,1742441432549,-156.25,0.00027259,2]
[356433261,1742441432559,-302.0,0.00027543,2]
[356433262,1742441432568,-300.0,0.00027548,2]
[356433263,1742441432577,-500.0,0.00027549,2]
[356433264,1742441432587,-500.0,0.00027549,2]
[356433265,1742441432596,-500.0,0.00027549,2]
[356433266,1742441432606,-500.0,0.00027549,2]
[356433267,1742441432616,-542.80956041,0.00027549,2]
[356433268,1742441432626,-500.0,0.00027549,2]
[356433270,1742441432635,-500.0,0.00027549,2]
[356433272,1742441432645,-500.0,0.00027549,2]
[356433274,1742441432655,-500.0,0.00027549,2]
[356433276,1742441432664,-500.0,0.00027549,2]
[356433278,1742441432673,-500.0,0.00027549,2]
[356433280,1742441432683,-500.0,0.00027549,2]
[356433282,1742441432692,-500.0,0.00027549,2]
[356433284,1742441432702,-500.0,0.00027549,2]
[356433286,1742441432711,-500.0,0.00027549,2]
[356433288,1742441432720,-500.0,0.00027549,2]
[356433290,1742441432729,-500.0,0.00027549,2]
[356433292,1742441432739,-500.0,0.00027549,2]
[356433294,1742441432748,-500.0,0.00027549,2]
[356433296,1742441432757,-517.891,0.0002755,17]
[356433298,1742441432767,-500.0,0.0002756,2]
[356433300,1742441432776,-500.0,0.0002756,2]
[356433302,1742441432786,-500.0,0.0002756,2]
[356433304,1742441432796,-157.94403833,0.0002756,2]
[356433306,1742441432805,-500.0,0.0002756,2]
[356433308,1742441432814,-283.39515489,0.0002756,2]
[356433310,1742441432825,-216.60484511,0.0002756,2]
[356433312,1742441432836,-500.0,0.0002756,2]
[356433314,1742441432848,-300.0,0.0002756,2]
[356433315,1742441432858,-500.0,0.0002756,2]
[356433316,1742441432868,-500.0,0.0002756,2]
[356433317,1742441432879,-500.0,0.0002756,2]
[356433318,1742441432888,-500.0,0.0002756,2]
[356433319,1742441432898,-500.0,0.0002756,2]
[356433320,1742441432907,-500.0,0.0002756,2]
[356433321,1742441433123,-500.0,0.0002756,2]
[356433322,1742441433134,-500.0,0.0002756,2]
[356433323,1742441433144,-500.0,0.0002756,2]
[356433324,1742441433153,-500.0,0.0002756,2]
[356433325,1742441433163,-545.27327459,0.0002756,2]
[356433326,1742441433172,-490.16420856,0.00027604,2]
[356433327,1742441433182,-500.0,0.00027604,2]
[356433328,1742441433193,-500.0,0.00027604,2]
[356433329,1742441433202,-500.0,0.00027604,2]
[356433330,1742441433212,-500.0,0.00027604,2]
[356433331,1742441433222,-500.0,0.00027604,2]
[356433332,1742441433232,-500.0,0.00027604,2]
[356433333,1742441433242,-500.0,0.00027604,2]
[356433334,1742441433252,-500.0,0.00027604,2]
[356433335,1742441433262,-500.0,0.00027604,2]
[356433336,1742441433271,-500.0,0.00027604,2]
[356433337,1742441433281,-500.0,0.00027604,2]
[356433338,1742441433291,-262.56258842,0.00027604,2]
[356433339,1742441433300,-475.86946819,0.00027604,2]
[356433340,1742441433310,-462.08500708,0.00027604,2]
[356433341,1742441433320,-500.0,0.00027604,2]
[356433342,1742441433329,-295.00306951,0.00027604,2]
[356433343,1742441433339,-500.0,0.00027604,2]
[356433344,1742441433349,-500.0,0.00027604,2]
[356433345,1742441433359,-500.0,0.00027605,30]
[356433346,1742441433368,-500.0,0.00027605,2]
[356433347,1742441433377,-500.0,0.00027605,2]
[356433348,1742441433388,-500.0,0.00027615,2]
[356433349,1742441433398,-500.0,0.00027615,2]
[356433350,1742441433408,-500.0,0.00027615,2]
[356433351,1742441433419,-500.0,0.00027615,2]
[356433352,1742441433429,-500.0,0.00027615,2]
[356433353,1742441433439,-500.0,0.00027615,2]
[356433354,1742441433448,-300.0,0.00027615,2]
[356433355,1742441433459,-500.0,0.00027615,2]
[356433356,1742441433469,-500.0,0.00027615,2]
[356433357,1742441433479,-500.0,0.00027615,2]
[356433358,1742441433489,-500.0,0.00027615,2]
[356433359,1742441433500,-500.0,0.00027615,2]
[356433360,1742441433509,-640.71705567,0.00027615,2]
[356433361,1742441433519,-500.0,0.00027615,2]
[356433362,1742441433530,-154.33468375,0.00027615,2]
[356433363,1742441433540,-500.0,0.00027615,2]
[356433364,1742441433550,-500.0,0.00027615,2]
[356433365,1742441433560,-500.0,0.00027658,2]
[356433366,1742441433570,-500.0,0.00027658,2]
[356433367,1742441433579,-500.0,0.00027658,2]
[356433368,1742441433588,-500.0,0.00027658,2]
[356433369,1742441433597,-500.0,0.00027658,2]
[356433370,1742441433606,-279.63509838,0.00027658,2]
[356433371,1742441433616,-500.0,0.00027658,2]
[356433372,1742441433625,-500.0,0.00027658,2]
[356433373,1742441433634,-500.0,0.00027658,2]
[356433374,1742441433643,-500.0,0.00027658,2]
[356433375,1742441433652,-500.0,0.00027658,2]
[356433376,1742441433661,-500.0,0.00027658,2]
[356433377,1742441433670,-500.0,0.00027658,2]
[356433378,1742441433680,-500.0,0.00027658,2]
[356433379,1742441433690,-450.59682021,0.0002766,30]
[356433380,1742441433700,-500.0,0.0002766,2]
[356433381,1742441433709,-396.05088014,0.0002766,2]
[356433387,1742441438204,-500.0,0.00027669,2]
[356433388,1742441438213,-500.0,0.00027669,2]
[356433389,1742441438223,-500.0,0.00027669,2]
[356433390,1742441438232,-504.4894431,0.00027669,2]
[356433391,1742441438242,-500.0,0.00027669,2]
[356433392,1742441438251,-500.0,0.00027669,2]
[356433393,1742441438260,-207.43055638,0.00027669,2]
[356433394,1742441438272,-292.56944362,0.00027669,2]
[356433395,1742441438281,-500.0,0.00027669,2]
[356433396,1742441438291,-500.0,0.0002767,2]
[356433397,1742441438300,-500.0,0.0002767,2]
[356433398,1742441438310,-500.0,0.0002767,2]
[356433399,1742441438319,-500.0,0.0002767,2]
[356433400,1742441438329,-500.0,0.0002767,2]
[356433401,1742441438338,-300.0,0.0002767,2]
[356433402,1742441438347,-368.58173204,0.0002767,2]
[356433403,1742441438358,-131.41826796,0.0002767,2]
[356433404,1742441438368,-500.0,0.0002767,2]
[356433405,1742441438378,-500.0,0.0002767,2]
[356433406,1742441438387,-500.0,0.0002767,2]
[356433407,1742441438396,-500.0,0.0002767,2]
[356433408,1742441438406,-500.0,0.0002767,2]
[356433409,1742441438415,-443.4274764,0.0002767,2]
[356433410,1742441438425,-500.0,0.0002767,2]
[356433411,1742441438435,-500.0,0.00027713,2]
[356433412,1742441438445,-500.0,0.00027713,2]
[356433413,1742441438454,-500.0,0.00027713,2]
[356433414,1742441438464,-500.0,0.00027713,2]
[356433415,1742441438474,-500.0,0.00027713,2]
[356433416,1742441438483,-500.0,0.00027713,2]
[356433417,1742441438493,-500.0,0.00027713,2]
[356433419,1742441438502,-500.0,0.00027713,2]
[356433421,1742441438511,-500.0,0.00027713,2]
[356433423,1742441438521,-263.37511648,0.00027713,2]
[356433425,1742441438532,-236.62488352,0.00027713,2]
[356433427,1742441438542,-500.0,0.00027713,2]
[356433428,1742441438551,-500.0,0.00027713,2]
[356433429,1742441438563,-500.0,0.00027713,2]
[356433430,1742441438572,-500.0,0.00027714,2]
[356433431,1742441438581,-345.29502561,0.00027724,2]
[356433432,1742441438591,-500.0,0.00027724,2]
[356433433,1742441438602,-388.97834559,0.00027724,2]
[356433434,1742441438611,-500.0,0.00027724,2]
[356433436,1742441438621,-551.29334328,0.00027724,2]
[356433437,1742441438632,-73.12578516,0.00027724,2]
[356433438,1742441438642,-447.37984434,0.00027724,2]
[356433439,1742441438653,-204.10001033,0.00027724,2]
[356433440,1742441438663,-500.0,0.00027724,2]
[356433441,1742441438673,-500.0,0.00027724,2]
[356433442,1742441438683,-500.0,0.00027724,2]
[356433443,1742441438692,-500.0,0.00027724,2]
[356433444,1742441438701,-500.0,0.00027724,2]
[356433445,1742441438710,-500.0,0.00027724,2]
[356433446,1742441438719,-500.0,0.00027724,2]
[356433447,1742441438730,-500.0,0.00027724,2]
[356433448,1742441438740,-500.0,0.00027724,2]
[356433449,1742441438751,-500.0,0.00027724,2]
[356433450,1742441438761,-500.0,0.00027724,2]
[356433451,1742441438770,-500.0,0.00027724,2]
[356433452,1742441438780,-500.0,0.00027724,2]
[356433453,1742441438790,-251.88050076,0.00027768,2]
[356433454,1742441438799,-500.0,0.00027768,2]
[356433455,1742441438808,-500.0,0.00027768,2]
[356433456,1742441438817,-500.0,0.00027768,2]
[356433457,1742441438827,-500.0,0.00027768,2]
[356433458,1742441438874,-86.71385941,0.00027768,2]
[356433459,1742441439010,-413.28614059,0.00027768,2]
[356433460,1742441439020,-500.0,0.00027768,2]
[356433461,1742441439030,-186.33983755,0.00027768,2]
[356433462,1742441439048,-313.66016245,0.00027768,2]
[356433463,1742441439057,-344.81827114,0.00027768,2]
[356433464,1742441439069,-155.18172886,0.00027768,2]
[356433465,1742441439078,-500.0,0.00027768,2]
[356433466,1742441439087,-500.0,0.00027768,2]
[356433467,1742441439096,-444.25366744,0.00027768,2]
[356433468,1742441439106,-500.0,0.00027768,2]
[356433469,1742441439115,-500.0,0.00027769,2]
[356433470,1742441439125,-500.0,0.00027779,2]
[356433471,1742441439133,-500.0,0.00027779,2]
[356433472,1742441439143,-500.0,0.00027779,2]
[356433473,1742441439152,-75.92372206,0.00027779,2]
[356433474,1742441439164,-424.07627794,0.00027779,2]
[356433475,1742441439173,-9.41551013,0.00027779,2]
[356433477,1742441440299,-490.58448987,0.00027779,2]
[356433478,1742441440309,-112.17614091,0.00027779,2]
[356433550,1742441441379,-0.00153167,0.00027779,2]
[356433553,1742441441390,-387.82232742,0.00027779,2]
[356433555,1742441441399,-500.0,0.00027779,2]
[356433557,1742441441408,-500.0,0.00027779,2]
[356433559,1742441441418,-500.0,0.00027779,2]
[356433561,1742441441427,-500.0,0.00027779,2]
[356433563,1742441441436,-500.0,0.00027779,2]
[356433564,1742441441446,-500.0,0.00027779,2]
[356433567,1742441441457,-500.0,0.00027779,2]
[356433569,1742441441467,-540.44451292,0.00027779,2]
[356433570,1742441441476,-500.0,0.00027779,2]
[356433572,1742441441485,-500.0,0.00027823,2]
[356433574,1742441441494,-500.0,0.00027823,2]
[356433576,1742441441504,-500.0,0.00027823,2]
[356433578,1742441441513,-500.0,0.00027823,2]
[356433580,1742441441523,-500.0,0.00027823,2]
[356433582,1742441441532,-500.0,0.00027823,2]
[356433584,1742441441542,-500.0,0.00027823,2]
[356433586,1742441441551,-462.95309832,0.00027823,2]
[356433588,1742441441566,-37.04690168,0.00027823,2]
[356433589,1742441441576,-500.0,0.00027823,2]
[356433590,1742441441586,-500.0,0.00027823,2]
[356433591,1742441441595,-255.95969403,0.00027823,2]
[356433592,1742441441605,-500.0,0.00027824,2]
[356433593,1742441441614,-1021.07038,0.00027824,40]
[356433594,1742441441623,-500.0,0.00027833,2]
[356433595,1742441441632,-500.0,0.00027833,2]
[356433596,1742441441642,-580.09,0.00027833,2]
[356433597,1742441441651,-500.0,0.00027833,2]
[356433598,1742441441661,-500.0,0.00027833,2]
[356433599,1742441441671,-500.0,0.00027833,2]
[356433600,1742441441680,-500.0,0.00027833,2]
[356433601,1742441441690,-500.0,0.00027833,2]
[356433602,1742441441699,-500.0,0.00027833,2]
[356433603,1742441441709,-500.0,0.00027833,2]
[356433604,1742441441718,-500.0,0.00027833,2]
[356433605,1742441441727,-500.0,0.00027833,2]
[356433606,1742441441736,-500.0,0.00027833,2]
[356433607,1742441441746,-500.0,0.00027833,2]
[356433608,1742441441755,-209.2165128,0.00027833,2]
[356433609,1742441441764,-162.0912915,0.00027833,2]
[356433610,1742441441774,-500.0,0.00027833,120]
[356433612,1742441441783,-500.0,0.00027833,2]
[356433614,1742441441792,-500.0,0.00027833,2]
[356433616,1742441441802,-500.0,0.00027833,2]
[356433618,1742441441811,-500.0,0.00027833,2]
[356433620,1742441441821,-500.0,0.00027833,2]
[356433622,1742441441830,-500.0,0.00027833,2]
[356433624,1742441441841,-263.77615936,0.00027833,2]
[356433817,1742441444072,-500.0,0.00027767,2]
[356433818,1742441444082,-500.0,0.00027767,2]
[356433819,1742441444092,-500.0,0.00027767,2]
[356433820,1742441444101,-500.0,0.00027767,2]
[356433821,1742441444111,-500.0,0.00027767,2]
[356433822,1742441444121,-500.0,0.00027767,2]
[356433823,1742441444131,-374.9088283,0.00027767,2]
[356433824,1742441444140,-500.0,0.00027767,2]
[356433825,1742441444149,-500.0,0.00027767,2]
[356433826,1742441444159,-500.0,0.00027767,2]
[356433827,1742441444168,-500.0,0.00027767,2]
[356433828,1742441444178,-500.0,0.00027767,2]
[356433829,1742441444187,-500.0,0.00027767,2]
[356433830,1742441444197,-500.0,0.00027767,2]
[356433831,1742441444207,-500.0,0.00027767,2]
[356433832,1742441444216,-500.0,0.00027767,2]
[356433833,1742441444226,-500.0,0.00027767,2]
[356433834,1742441444235,-500.0,0.00027767,2]
[356433835,1742441444244,-500.0,0.00027767,2]
[356433836,1742441444254,-500.0,0.00027767,2]
[356433837,1742441444263,-500.0,0.00027767,2]
[356433838,1742441444272,-500.0,0.00027767,2]
[356433839,1742441444281,-102.89846567,0.00027767,2]
[356433905,1742441446299,-397.10153433,0.00027767,2]
[356433906,1742441446308,-435.52091251,0.00027767,2]
[356433907,1742441446319,-64.47908749,0.00027767,2]
[356433908,1742441446328,-500.0,0.00027767,2]
[356433909,1742441446338,-236.22384064,0.00027833,2]
[356433910,1742441446347,-500.0,0.00027833,2]
[356433911,1742441446357,-500.0,0.00027833,2]
[356433912,1742441446367,-500.0,0.00027833,2]
[356433913,1742441446376,-437.08389668,0.00027833,2]
[356433914,1742441446581,-62.91610332,0.00027833,2]
[356433915,1742441446590,-500.0,0.00027833,2]
[356433916,1742441446600,-500.0,0.00027833,2]
[356433917,1742441446610,-500.0,0.00027833,2]
[356433918,1742441446619,-500.0,0.00027833,2]
[356433919,1742441446629,-500.0,0.00027833,2]
[356433920,1742441446638,-500.0,0.00027833,2]
[356433921,1742441446648,-500.0,0.00027833,2]
[356433922,1742441446657,-304.68389664,0.00027833,2]
[356433927,1742442632352,-150.0,0.00022826,2]
[356433928,1742442632361,-152.3,0.00024979,2]
[356433929,1742442632371,-150.0,0.00026918,7]
[356433930,1742442632381,-1000.0,0.00026918,2]
[356433931,1742442632391,-171.89,0.00026977,30]
[356433932,1742442632400,-416.26037206,0.00027,2]
[356433933,1742442632411,-150.23063211,0.00027149,4]
[356433934,1742442632510,-42.60746439,0.00027149,4]
[356433935,1742442632520,-1109.83006326,0.00027276,2]
[356433936,1742442632530,-152.3,0.00027368,2]
[356433937,1742442632539,-169.61,0.00027742,2]
[356433938,1742442632549,-184.12891144,0.00027832,2]
[356433939,1742442632559,-850.89198,0.00027833,40]
[356433940,1742442632569,-4165.22277654,0.00027841,2]
[356433946,1742442638355,-500.0,0.00027,3]
[356433947,1742442638365,-465.89492752,0.00027841,2]
[356433948,1742442638377,-1316.36079594,0.00027841,2]
[356433949,1742442638386,-261.7044,0.00027841,2]
[356433950,1742442638396,-576.604,0.00027842,2]
[356433951,1742442638406,-201.35593609,0.00027863,30]
[356433952,1742442638415,-302.0,0.00027871,2]
[356433953,1742442638425,-414.313,0.00027877,18]